[Event "Dutch Open-ch 2019"]
[Site "Dieren"]
[Date "2019.07.29"]
[Round "6.19"]
[White "Grutter, Tim"]
[Black "Van Helvoort, Rob"]
[Result "0-1"]
[ECO "C07"]
[WhiteElo "2091"]
[BlackElo "2104"]
[Annotator "NA"]
[PlyCount "92"]
[EventDate "2019.07.23"]
[EventType "swiss"]
[EventCountry "NED"]
[SourceTitle "playchess.com"]
[Source "ChessBase"]
[SourceQuality "1"]
[TimeControl "40/5400+30:1800+30"]

1. e4 {[%emt 0:00:00]} e6 {[%emt 0:00:00]} 2. d4 {[%emt 0:00:00]} d5 {[%emt 0:00:00]} 3. Nd2 {[%emt 0:00:00]} c5 {[%emt 0:00:00]} 4. exd5 {[%emt 0:00:00]} Qxd5 {[%emt 0:00:07]} 5. Ngf3 {[%emt 0:00:18]} cxd4 {[%emt 0:00:10]} 6. Bc4 {[%emt 0:00:10]} Qd6 {[%emt 0:00:05]} 7. O-O {[%emt 0:00:33]} Nf6 {[%emt 0:00:05]} 8. Nb3 {[%emt 0:00:31]} Nc6 {[%emt 0:00:04]} 9. Nbxd4 {[%emt 0:00:23]} Nxd4 {[%emt 0:00:09]} 10. Nxd4 {[%emt 0:00:13]} Be7 {[%emt 0:00:07]} 11. Nb5 {[%emt 0:12:15]} Qc6 {[%emt 0:01:24]} 12. Qe2 {[%emt 0:05:45]} O-O {[%emt 0:03:11]} 13. Bf4 {[%emt 0:10:49]} b6 {[%emt 0:07:11]} 14. Nd4 {[%emt 0:06:30]} Qc5 {[%emt 0:00:41]} 15. c3 {[%emt 0:13:23]} Bb7 {[%emt 0:08:37]} 16. b4 {[%emt 0:03:09]} Qh5 {[%emt 0:01:02]} 17. Qxh5 {[%emt 0:08:24]} Nxh5 {[%emt 0:00:09]} 18. Bd2 {[%emt 0:00:21]} Rfd8 {[%emt 0:06:41]} 19. Nb3 {[%emt 0:02:49]} Nf6 {[%emt 0:06:30]} 20. Rac1 {[%emt 0:02:12]} Ne4 {[%emt 0:02:13]} 21. Be1 {[%emt 0:01:00]} Rac8 {[%emt 0:28:52]} 22. Be2 {[%emt 0:04:41]} Rd7 {[%emt 0:07:30]} 23. c4 {[%emt 0:06:39]} Ba6 {[%emt 0:06:58]} 24. f3 {[%emt 0:01:20]} Nf6 {[%emt 0:00:34]} 25. b5 {[%emt 0:01:07]} Bb7 {[%emt 0:00:14]} 26. a4 {[%emt 0:01:47]} Rdd8 {[%emt 0:03:42]} 27. a5 {[%emt 0:01:20]} Nd7 {[%emt 0:00:05]} 28. Bf2 {[%emt 0:00:47]} Nc5 {[%emt 0:04:39]} 29. Nxc5 {[%emt 0:00:12]} Bxc5 {[%emt 0:00:06]} 30. Rfd1 {[%emt 0:01:12]} Bxf2+ {[%emt 0:06:56]} 31. Kxf2 {[%emt 0:00:06]} Kf8 {[%emt 0:00:19]} 32. Rxd8+ {[%emt 0:01:51]} Rxd8 {[%emt 0:00:01]} 33. a6 {[%emt 0:00:45]} Ba8 {[%emt 0:01:09]} 34. c5 {[%emt 0:00:13]} bxc5 {[%emt 0:00:05]} 35. Rxc5 {[%emt 0:00:11]} Ke7 {[%emt 0:00:29]} 36. Ke3 {[%emt 0:05:52]} Bd5 {[%emt 0:00:12]} 37. Bd3 {[%emt 0:02:25]} Kd6 {[%emt 0:02:51]} 38. Rc1 {[%emt 0:00:26]} f5 {[%emt 0:00:07]} 39. g3 {[%emt 0:02:02]} g5 {[%emt 0:02:29]} 40. Rc2 {[%emt 0:05:46]} h6 {[%emt 0:03:09]} 41. Rc1 {[%emt 0:15:57]} Rf8 {[%emt 0:01:25]} 42. Bc4 {[%emt 0:17:36]} f4+ {[%emt 0:30:42]} 43. gxf4 {[%emt 0:00:30]} gxf4+ {[%emt 0:00:30]} 44. Kf2 {[%emt 0:00:30]} Rc8 {[%emt 0:00:30]} 45. Bxd5 {[%emt 0:00:30]} Rxc1 {[%emt 0:00:30]} 46. b6 exd5 {[%emt 0:00:30]} 0-1

[Event "Dutch Open-ch 2019"]
[Site "Dieren"]
[Date "2019.07.29"]
[Round "6.20"]
[White "Van Roon, Sjoerd"]
[Black "Tang, Charlie"]
[Result "1-0"]
[ECO "C18"]
[WhiteElo "2072"]
[BlackElo "2247"]
[Annotator "NA"]
[PlyCount "113"]
[EventDate "2019.07.23"]
[EventType "swiss"]
[EventCountry "NED"]
[SourceTitle "playchess.com"]
[Source "ChessBase"]
[SourceQuality "1"]
[TimeControl "40/5400+30:1800+30"]

1. e4 {[%emt 0:00:00]} e6 {[%emt 0:00:00]} 2. d4 {[%emt 0:00:00]} d5 {[%emt 0:00:03]} 3. Nc3 {[%emt 0:00:00]} Bb4 {[%emt 0:00:06]} 4. e5 {[%emt 0:00:00]} c5 {[%emt 0:00:05]} 5. a3 {[%emt 0:00:00]} Bxc3+ {[%emt 0:00:08]} 6. bxc3 {[%emt 0:00:00]} Ne7 {[%emt 0:00:06]} 7. Qg4 {[%emt 0:00:13]} Qc7 {[%emt 0:00:09]} 8. Qxg7 {[%emt 0:00:07]} Rg8 {[%emt 0:00:04]} 9. Qxh7 {[%emt 0:00:03]} cxd4 {[%emt 0:00:03]} 10. Qd3 {[%emt 0:00:04]} dxc3 {[%emt 0:09:10]} 11. Ne2 {[%emt 0:00:47]} Nbc6 {[%emt 0:00:52]} 12. Qxc3 {[%emt 0:03:21]} Bd7 {[%emt 0:13:17]} 13. f4 {[%emt 0:16:29]} Nf5 {[%emt 0:18:00]} 14. g4 {[%emt 0:20:46]} Nh4 {[%emt 0:12:50]} 15. Nd4 {[%emt 0:09:32]} a6 {[%emt 0:09:52]} 16. h3 {[%emt 0:04:01]} Qb6 {[%emt 0:00:55]} 17. Nb3 {[%emt 0:04:57]} Rc8 {[%emt 0:03:02]} 18. Qd3 {[%emt 0:08:02]} Rh8 {[%emt 0:03:30]} 19. Be3 {[%emt 0:05:39]} d4 {[%emt 0:02:20]} 20. Bf2 {[%emt 0:00:08]} Nxe5 {[%emt 0:03:43]} 21. fxe5 {[%emt 0:00:49]} Bb5 {[%emt 0:00:04]} 22. Qd1 {[%emt 0:12:27]} Qc6 {[%emt 0:01:42]} 23. Bxb5 {[%emt 0:00:50]} axb5 {[%emt 0:00:04]} 24. Kd2 {[%emt 0:02:37]} Qc3+ {[%emt 0:01:20]} 25. Kc1 {[%emt 0:01:43]} d3 {[%emt 0:00:18]} 26. Bc5 {[%emt 0:03:56]} Rxc5 {[%emt 0:04:25]} 27. Nxc5 {[%emt 0:00:06]} Qxa1+ {[%emt 0:01:00]} 28. Kd2 {[%emt 0:00:03]} Qxe5 {[%emt 0:00:45]} 29. Nxd3 {[%emt 0:00:10]} Qg5+ {[%emt 0:03:28]} 30. Kc3 {[%emt 0:00:05]} Ke7 {[%emt 0:00:07]} 31. Qe2 {[%emt 0:01:48]} Qd5 {[%emt 0:02:39]} 32. Rf1 {[%emt 0:00:34]} Ng6 {[%emt 0:04:48]} 33. Qf2 {[%emt 0:00:33]} Rc8+ {[%emt 0:00:31]} 34. Kb2 {[%emt 0:00:07]} e5 {[%emt 0:00:29]} 35. Qf6+ {[%emt 0:01:28]} Ke8 {[%emt 0:00:05]} 36. Kb1 {[%emt 0:01:17]} Rc7 {[%emt 0:03:41]} 37. Qf5 {[%emt 0:01:41]} Re7 {[%emt 0:02:17]} 38. Re1 {[%emt 0:00:11]} Qd7 {[%emt 0:03:02]} 39. Re4 {[%emt 0:01:10]} Qe6 {[%emt 0:00:00]} 40. Qf2 {[%emt 0:03:35]} Qd5 {[%emt 0:00:19]} 41. Qf5 {[%emt 0:01:38]} Re6 {[%emt 0:00:50]} 42. Qf3 {[%emt 0:01:17]} Kf8 {[%emt 0:05:28]} 43. Qe3 {[%emt 0:00:52]} Qd6 {[%emt 0:03:47]} 44. Rb4 {[%emt 0:02:20]} Re7 {[%emt 0:07:22]} 45. g5 {[%emt 0:02:08]} Qd5 {[%emt 0:01:03]} 46. Qe4 {[%emt 0:01:50]} Qxe4 {[%emt 0:01:50]} 47. Rxe4 {[%emt 0:00:04]} Kg7 {[%emt 0:00:03]} 48. h4 {[%emt 0:00:18]} f5 {[%emt 0:00:04]} 49. gxf6+ {[%emt 0:01:01]} Kxf6 {[%emt 0:00:03]} 50. h5 {[%emt 0:01:43]} Kf5 {[%emt 0:01:11]} 51. Rb4 {[%emt 0:01:02]} Nf4 {[%emt 0:01:10]} 52. h6 {[%emt 0:02:21]} e4 {[%emt 0:06:14]} 53. Rxb5+ {[%emt 0:00:34]} Kg4 {[%emt 0:00:17]} 54. Re5 {[%emt 0:02:40]} Ng6 {[%emt 0:04:47]} 55. Rxe7 {[%emt 0:00:09]} Nxe7 {[%emt 0:00:04]} 56. h7 {[%emt 0:00:06]} Ng6 {[%emt 0:00:02]} 57. Ne5+ {[%emt 0:00:03]} 1-0

[Event "Dutch Open-ch 2019"]
[Site "Dieren"]
[Date "2019.07.30"]
[Round "7.1"]
[White "Van Foreest, Lucas"]
[Black "Schoppen, Casper"]
[Result "1/2-1/2"]
[ECO "B31"]
[WhiteElo "2521"]
[BlackElo "2493"]
[Annotator "ChessBase"]
[PlyCount "63"]
[EventDate "2019.07.23"]
[EventType "swiss"]
[EventCountry "NED"]
[SourceTitle "playchess.com"]
[Source "ChessBase"]
[SourceQuality "1"]
[TimeControl "40/5400+30:1800+30"]

1. e4 {[%emt 0:08:05]} c5 {[%emt 0:00:00]} 2. Nf3 {[%emt 0:00:08]} Nc6 {[%emt 0:00:00]} 3. Bb5 {[%emt 0:00:03]} g6 {[%emt 0:00:06]} 4. O-O {[%emt 0:00:02]} Bg7 {[%emt 0:00:06]} 5. Re1 {[%emt 0:00:03]} e5 {[%emt 0:00:15]} 6. b4 {[%emt 0:00:01]} Nxb4 {[%emt 0:00:48]} 7. Bb2 {[%emt 0:00:19]} a6 {[%emt 0:00:29]} 8. a3 {[%emt 0:00:01]} axb5 {[%emt 0:00:10]} 9. axb4 {[%emt 0:00:03]} Rxa1 {[%emt 0:00:08]} 10. Bxa1 {[%emt 0:00:03]} d6 {[%emt 0:00:39]} 11. bxc5 {[%emt 0:00:10]} Ne7 {[%emt 0:00:08]} 12. cxd6 {[%emt 0:00:06]} Qxd6 {[%emt 0:00:09]} 13. d4 {[%emt 0:00:03]} exd4 {[%emt 0:00:28]} 14. Bxd4 {[%emt 0:00:04]} O-O {[%emt 0:00:28]} 15. Nc3 {[%emt 0:00:04]} Bxd4 {[%emt 0:03:53]} 16. Nxd4 {[%emt 0:00:02]} b4 {[%emt 0:00:14]} 17. e5 {[%emt 0:00:01]} Qc5 {[%emt 0:04:11]} 18. Ne4 {[%emt 0:00:15]} Qxe5 {[%emt 0:00:13]} 19. Nf3 {[%emt 0:00:08]} Qb2 {[%emt 0:01:31]} 20. Qd6 {[%emt 0:01:35]} Nc6 {[%emt 0:01:56]} 21. h4 {[%emt 0:00:13]} h5 {[%emt 0:10:23]} 22. c3 {[%emt 0:00:03]} Be6 {[%emt 0:04:26]} 23. Qf4 {[%emt 0:00:08]} bxc3 {[%emt 0:01:28]} 24. Qh6 {[%emt 0:00:10]} c2 {[%emt 0:00:12]} 25. Nfg5 {[%emt 0:00:13]} Rc8 {[%emt 0:01:45]} 26. Nh7 {[%emt 0:00:12]} Qg7 {[%emt 0:00:10]} 27. Nhf6+ {[%emt 0:00:08]} Kf8 {[%emt 0:00:05]} 28. Nh7+ {[%emt 0:13:23]} Kg8 {[%emt 0:00:08]} 29. Nhf6+ {[%emt 0:00:02]} Kf8 {[%emt 0:00:05]} 30. Nh7+ {[%emt 0:00:03]} Kg8 {[%emt 0:00:05]} 31. Nhf6+ {[%emt 0:00:03]} Kf8 {[%emt 0:00:09]} 32. Nh7+ {[%emt 0:00:04]} 1/2-1/2

[Event "Dutch Open-ch 2019"]
[Site "Dieren"]
[Date "2019.07.30"]
[Round "7.3"]
[White "Beerdsen, Thomas"]
[Black "Bosboom, Manuel"]
[Result "0-1"]
[ECO "C41"]
[WhiteElo "2497"]
[BlackElo "2418"]
[Annotator "ChessBase"]
[PlyCount "120"]
[EventDate "2019.07.23"]
[EventType "swiss"]
[EventCountry "NED"]
[SourceTitle "playchess.com"]
[Source "ChessBase"]
[SourceQuality "1"]
[TimeControl "40/5400+30:1800+30"]

1. e4 {[%emt 1:30:30]} e5 {[%emt 0:00:56]} 2. Nf3 {[%emt 0:00:00]} d6 {[%emt 0:00:06]} 3. d4 {[%emt 0:00:00]} Nf6 {[%emt 0:01:20]} 4. Nc3 {[%emt 0:00:00]} Nbd7 {[%emt 0:00:09]} 5. Bc4 {[%emt 0:00:00]} Be7 {[%emt 0:00:07]} 6. a4 {[%emt 0:00:00]} O-O {[%emt 0:01:27]} 7. O-O {[%emt 0:00:00]} a6 {[%emt 0:02:47]} 8. a5 {[%emt 0:00:00]} b5 {[%emt 0:06:59]} 9. axb6 {[%emt 0:00:00]} cxb6 {[%emt 0:00:12]} 10. Qe2 {[%emt 0:00:00]} Bb7 {[%emt 0:01:05]} 11. Rd1 {[%emt 0:00:00]} b5 {[%emt 0:10:23]} 12. dxe5 {[%emt 0:00:00]} dxe5 {[%emt 0:00:20]} 13. Ba2 {[%emt 0:00:00]} Qc7 {[%emt 0:02:35]} 14. Nh4 {[%emt 0:00:00]} g6 {[%emt 0:36:21]} 15. Bh6 {[%emt 0:00:00]} Rfe8 {[%emt 0:01:47]} 16. Nf3 {[%emt 0:00:00]} Bf8 {[%emt 0:05:40]} 17. Bxf8 {[%emt 0:00:00]} Rxf8 {[%emt 0:02:26]} 18. Rd2 {[%emt 0:00:00]} Nb6 {[%emt 0:04:52]} 19. Rad1 {[%emt 0:00:00]} b4 {[%emt 0:06:40]} 20. Nd5 {[%emt 0:00:00]} Nbxd5 {[%emt 0:00:26]} 21. Bxd5 {[%emt 0:00:00]} Bxd5 {[%emt 0:00:25]} 22. exd5 {[%emt 0:00:00]} e4 {[%emt 0:00:07]} 23. Nd4 {[%emt 0:00:00]} Rfe8 {[%emt 0:03:27]} 24. Nb3 {[%emt 0:00:00]} Qd6 {[%emt 0:02:32]} 25. Rd4 {[%emt 0:00:00]} a5 {[%emt 0:00:23]} 26. Nd2 {[%emt 0:00:00]} a4 {[%emt 0:05:13]} 27. Nxe4 {[%emt 0:00:14]} a3 {[%emt 0:01:00]} 28. bxa3 {[%emt 0:03:31]} bxa3 {[%emt 0:00:10]} 29. Ra1 {[%emt 0:00:42]} Nxe4 {[%emt 0:03:17]} 30. Rxe4 {[%emt 0:00:05]} Reb8 {[%emt 0:00:44]} 31. Rd4 {[%emt 0:02:09]} a2 {[%emt 0:00:29]} 32. Rdd1 {[%emt 0:00:16]} Rb2 {[%emt 0:00:22]} 33. Qc4 {[%emt 0:00:54]} Qb6 {[%emt 0:00:48]} 34. g3 {[%emt 0:02:03]} Rb1 {[%emt 0:00:23]} 35. Qf1 {[%emt 0:00:13]} Rxa1 {[%emt 0:00:29]} 36. Rxa1 {[%emt 0:00:05]} Qd4 {[%emt 0:00:22]} 37. c4 {[%emt 0:03:58]} Ra3 {[%emt 0:00:17]} 38. Kg2 {[%emt 0:01:01]} Qe4+ {[%emt 0:00:09]} 39. Kg1 {[%emt 0:00:47]} Qd4 {[%emt 0:00:07]} 40. Kg2 {[%emt 0:00:13]} Qe4+ {[%emt 0:01:35]} 41. Kg1 {[%emt 0:31:02]} Rb3 {[%emt 0:04:46]} 42. Rxa2 {[%emt 0:00:00]} Rb1 {[%emt 0:00:35]} 43. Ra1 {[%emt 0:00:00]} Rxf1+ {[%emt 0:00:05]} 44. Rxf1 {[%emt 0:00:00]} Qxc4 {[%emt 0:00:17]} 45. Rd1 {[%emt 0:00:00]} Qb3 {[%emt 0:01:31]} 46. Rd4 {[%emt 0:00:00]} Qb6 {[%emt 0:00:37]} 47. Rd1 {[%emt 0:00:00]} Qd6 {[%emt 0:01:04]} 48. Kg2 {[%emt 0:00:00]} Kf8 {[%emt 0:01:36]} 49. Rd4 {[%emt 0:00:00]} Ke7 {[%emt 0:00:28]} 50. Rd1 {[%emt 0:00:00]} Kd7 {[%emt 0:00:06]} 51. Kg1 {[%emt 0:00:00]} g5 {[%emt 0:00:35]} 52. Kg2 {[%emt 0:00:00]} h6 {[%emt 0:01:23]} 53. Kg1 {[%emt 0:00:00]} f5 {[%emt 0:01:54]} 54. Kg2 {[%emt 0:00:00]} h5 {[%emt 0:03:35]} 55. h3 {[%emt 0:00:00]} Qe5 {[%emt 0:06:37]} 56. d6 {[%emt 0:00:00]} Qe4+ {[%emt 0:00:04]} 57. Kg1 {[%emt 0:00:00]} f4 {[%emt 0:02:04]} 58. gxf4 {[%emt 0:00:00]} gxf4 {[%emt 0:00:30]} 59. Kh2 {[%emt 0:00:00]} Qe2 {[%emt 0:00:19]} 60. Rh1 {[%emt 0:00:00]} Qxf2# {[%emt 0:00:03]} 0-1

[Event "Dutch Open-ch 2019"]
[Site "Dieren"]
[Date "2019.07.30"]
[Round "7.4"]
[White "Buckels, Valentin"]
[Black "Hausrath, Daniel"]
[Result "1/2-1/2"]
[ECO "B09"]
[WhiteElo "2451"]
[BlackElo "2468"]
[Annotator "ChessBase"]
[PlyCount "32"]
[EventDate "2019.07.23"]
[EventType "swiss"]
[EventCountry "NED"]
[SourceTitle "playchess.com"]
[Source "ChessBase"]
[SourceQuality "1"]
[TimeControl "40/5400+30:1800+30"]

1. d4 {[%emt 0:00:00]} d6 {[%emt 0:01:43]} 2. e4 {[%emt 0:00:34]} Nf6 {[%emt 0:00:26]} 3. Nc3 {[%emt 0:00:28]} g6 {[%emt 0:01:27]} 4. f4 {[%emt 0:03:29]} Bg7 {[%emt 0:01:19]} 5. Nf3 {[%emt 0:00:18]} c5 {[%emt 0:05:06]} 6. Bb5+ {[%emt 0:07:58]} Bd7 {[%emt 0:01:30]} 7. e5 {[%emt 0:00:31]} Ng4 {[%emt 0:01:16]} 8. e6 {[%emt 0:01:33]} fxe6 {[%emt 0:01:31]} 9. Ng5 {[%emt 0:03:37]} Bxb5 {[%emt 0:02:25]} 10. Nxe6 {[%emt 0:03:29]} Bxd4 {[%emt 0:02:27]} 11. Nxb5 {[%emt 0:02:40]} Qa5+ {[%emt 0:00:58]} 12. c3 {[%emt 0:00:08]} Bf2+ {[%emt 0:00:21]} 13. Kd2 {[%emt 0:00:11]} Be3+ {[%emt 0:00:16]} 14. Ke1 {[%emt 0:04:38]} Bf2+ {[%emt 0:01:47]} 15. Kd2 {[%emt 0:00:05]} Be3+ {[%emt 0:00:10]} 16. Ke1 {[%emt 0:00:22]} Bf2+ {[%emt 0:00:57]} 1/2-1/2

[Event "Dutch Open-ch 2019"]
[Site "Dieren"]
[Date "2019.07.30"]
[Round "7.5"]
[White "Maris, Ivo"]
[Black "Reinderman, Dimitri"]
[Result "1-0"]
[ECO "A00"]
[WhiteElo "2399"]
[BlackElo "2583"]
[Annotator "ChessBase"]
[PlyCount "79"]
[EventDate "2019.07.23"]
[EventType "swiss"]
[EventCountry "NED"]
[SourceTitle "playchess.com"]
[Source "ChessBase"]
[SourceQuality "1"]
[TimeControl "40/5400+30:1800+30"]

1. b4 {[%emt 0:00:24]} d5 {[%emt 0:01:44]} 2. Bb2 {[%emt 0:00:24]} Bg4 {[%emt 0:00:13]} 3. Nf3 {[%emt 0:03:00]} Nd7 {[%emt 0:04:37]} 4. e3 {[%emt 0:02:01]} e5 {[%emt 0:03:25]} 5. h3 {[%emt 0:01:01]} Bxf3 {[%emt 0:00:10]} 6. Qxf3 {[%emt 0:00:05]} Ngf6 {[%emt 0:00:14]} 7. a3 {[%emt 0:04:46]} Bd6 {[%emt 0:02:12]} 8. Nc3 {[%emt 0:08:57]} c6 {[%emt 0:00:53]} 9. e4 {[%emt 0:01:20]} d4 {[%emt 0:08:34]} 10. Ne2 {[%emt 0:02:09]} Nb6 {[%emt 0:04:25]} 11. Ng3 {[%emt 0:02:41]} Na4 {[%emt 0:01:32]} 12. Bc1 {[%emt 0:01:29]} b5 {[%emt 0:01:52]} 13. c4 {[%emt 0:02:28]} a6 {[%emt 0:02:35]} 14. c5 {[%emt 0:02:39]} Bxc5 {[%emt 0:20:20]} 15. bxc5 {[%emt 0:04:27]} Nxc5 {[%emt 0:00:07]} 16. h4 {[%emt 0:12:54]} O-O {[%emt 0:06:19]} 17. h5 {[%emt 0:04:45]} h6 {[%emt 0:00:50]} 18. Rb1 {[%emt 0:06:25]} Nh7 {[%emt 0:05:30]} 19. d3 {[%emt 0:04:40]} Ng5 {[%emt 0:02:09]} 20. Qg4 {[%emt 0:01:51]} Nce6 {[%emt 0:01:02]} 21. Nf5 {[%emt 0:01:03]} c5 {[%emt 0:02:18]} 22. g3 {[%emt 0:00:51]} Kh8 {[%emt 0:04:08]} 23. f4 {[%emt 0:31:10]} Nh7 {[%emt 0:00:10]} 24. fxe5 {[%emt 0:00:00]} Nhg5 {[%emt 0:00:18]} 25. Be2 {[%emt 0:00:00]} c4 {[%emt 0:05:43]} 26. O-O {[%emt 0:00:00]} Qc7 {[%emt 0:01:16]} 27. Bf4 {[%emt 0:02:00]} Qc5 {[%emt 0:00:38]} 28. Nd6 {[%emt 0:00:00]} Qxa3 {[%emt 0:02:22]} 29. Bc1 {[%emt 0:00:00]} Qc5 {[%emt 0:02:24]} 30. Rf5 {[%emt 0:00:00]} c3 {[%emt 0:06:02]} 31. Bxg5 {[%emt 0:00:00]} Nxg5 {[%emt 0:00:12]} 32. Rxg5 {[%emt 0:00:00]} hxg5 {[%emt 0:01:13]} 33. Qxg5 {[%emt 0:00:00]} f6 {[%emt 0:04:57]} 34. Qg6 {[%emt 0:00:00]} fxe5 {[%emt 0:02:11]} 35. h6 {[%emt 0:00:00]} Ra7 {[%emt 0:01:01]} 36. Kg2 {[%emt 0:00:00]} gxh6 {[%emt 0:01:37]} 37. Qxh6+ {[%emt 0:00:00]} Kg8 {[%emt 0:00:14]} 38. Rh1 {[%emt 0:00:00]} Qxd6 {[%emt 0:00:52]} 39. Qxd6 {[%emt 0:00:00]} Raf7 {[%emt 0:00:14]} 40. Qg6+ {[%emt 0:00:00]} 1-0

[Event "Dutch Open-ch 2019"]
[Site "Dieren"]
[Date "2019.07.30"]
[Round "7.6"]
[White "David, Alberto"]
[Black "Odendahl, Reiner"]
[Result "1/2-1/2"]
[ECO "A46"]
[WhiteElo "2553"]
[BlackElo "2352"]
[Annotator "ChessBase"]
[PlyCount "82"]
[EventDate "2019.07.23"]
[EventType "swiss"]
[EventCountry "NED"]
[SourceTitle "playchess.com"]
[Source "ChessBase"]
[SourceQuality "1"]
[TimeControl "40/5400+30:1800+30"]

1. d4 {[%emt 0:00:00]} Nf6 {[%emt 0:00:00]} 2. Nf3 {[%emt 0:00:15]} a6 {[%emt 0:01:22]} 3. c3 {[%emt 0:03:02]} e6 {[%emt 0:02:26]} 4. Bg5 {[%emt 0:01:09]} c5 {[%emt 0:01:10]} 5. e4 {[%emt 0:15:11]} h6 {[%emt 0:02:34]} 6. Bxf6 {[%emt 0:00:16]} Qxf6 {[%emt 0:00:43]} 7. Bd3 {[%emt 0:09:30]} d5 {[%emt 0:08:27]} 8. O-O {[%emt 0:06:30]} dxe4 {[%emt 0:08:19]} 9. Bxe4 {[%emt 0:00:28]} Nd7 {[%emt 0:00:07]} 10. d5 {[%emt 0:08:47]} exd5 {[%emt 0:03:56]} 11. Bxd5 {[%emt 0:00:04]} Be7 {[%emt 0:00:11]} 12. Nbd2 {[%emt 0:04:14]} O-O {[%emt 0:01:21]} 13. Nc4 {[%emt 0:04:27]} Nb6 {[%emt 0:10:48]} 14. Nxb6 {[%emt 0:00:35]} Qxb6 {[%emt 0:00:07]} 15. Ne5 {[%emt 0:03:47]} Bf6 {[%emt 0:03:51]} 16. Nc4 {[%emt 0:07:35]} Qc7 {[%emt 0:01:55]} 17. Re1 {[%emt 0:04:39]} Bd7 {[%emt 0:05:51]} 18. Qf3 {[%emt 0:05:34]} Rab8 {[%emt 0:01:05]} 19. Rad1 {[%emt 0:01:00]} Kh8 {[%emt 0:03:22]} 20. Qg3 {[%emt 0:11:29]} Qxg3 {[%emt 0:04:21]} 21. hxg3 {[%emt 0:00:03]} b5 {[%emt 0:01:01]} 22. Nd6 {[%emt 0:00:19]} Bg4 {[%emt 0:00:14]} 23. f3 {[%emt 0:06:31]} Bh5 {[%emt 0:01:41]} 24. g4 {[%emt 0:00:29]} Bg6 {[%emt 0:08:21]} 25. f4 {[%emt 0:00:22]} Kg8 {[%emt 0:04:23]} 26. Be4 {[%emt 0:04:22]} b4 {[%emt 0:03:52]} 27. cxb4 {[%emt 0:00:37]} Bxe4 {[%emt 0:02:49]} 28. Rxe4 {[%emt 0:00:51]} cxb4 {[%emt 0:00:30]} 29. Re2 {[%emt 0:01:38]} Rfd8 {[%emt 0:01:53]} 30. Red2 {[%emt 0:00:27]} b3 {[%emt 0:01:47]} 31. a3 {[%emt 0:00:03]} a5 {[%emt 0:02:24]} 32. Ne4 {[%emt 0:01:07]} Rxd2 {[%emt 0:00:31]} 33. Nxf6+ {[%emt 0:00:26]} gxf6 {[%emt 0:00:02]} 34. Rxd2 {[%emt 0:00:04]} Rc8 {[%emt 0:00:27]} 35. Rd3 {[%emt 0:00:47]} a4 {[%emt 0:00:26]} 36. Rd4 {[%emt 0:00:03]} Rc2 {[%emt 0:00:12]} 37. Rxa4 {[%emt 0:00:04]} Rxb2 {[%emt 0:00:07]} 38. Rb4 {[%emt 0:00:08]} Rb1+ {[%emt 0:00:59]} 39. Kf2 {[%emt 0:00:24]} b2 {[%emt 0:00:06]} 40. a4 {[%emt 0:00:09]} Ra1 {[%emt 0:00:10]} 41. Rxb2 {[%emt 0:30:04]} Rxa4 {[%emt 0:30:09]} 1/2-1/2

[Event "Dutch Open-ch 2019"]
[Site "Dieren"]
[Date "2019.07.30"]
[Round "7.7"]
[White "Das, Arghyadip"]
[Black "Sharma, Dinesh K."]
[Result "1/2-1/2"]
[ECO "C11"]
[WhiteElo "2439"]
[BlackElo "2299"]
[Annotator "ChessBase"]
[PlyCount "39"]
[EventDate "2019.07.23"]
[EventType "swiss"]
[EventCountry "NED"]
[SourceTitle "playchess.com"]
[Source "ChessBase"]
[SourceQuality "1"]
[TimeControl "40/5400+30:1800+30"]

1. e4 {[%emt 0:00:00]} e6 {[%emt 0:00:00]} 2. d4 {[%emt 0:00:00]} d5 {[%emt 0:00:00]} 3. Nd2 {[%emt 0:00:17]} Nf6 {[%emt 0:00:48]} 4. e5 {[%emt 0:00:58]} Nfd7 {[%emt 0:00:05]} 5. c3 {[%emt 0:01:30]} c5 {[%emt 0:00:33]} 6. Ndf3 {[%emt 0:03:41]} cxd4 {[%emt 0:03:53]} 7. cxd4 {[%emt 0:00:02]} Nc6 {[%emt 0:00:07]} 8. Ne2 {[%emt 0:06:50]} Qb6 {[%emt 0:04:09]} 9. g3 {[%emt 0:03:54]} f6 {[%emt 0:01:14]} 10. exf6 {[%emt 0:01:06]} Nxf6 {[%emt 0:00:04]} 11. Bg2 {[%emt 0:00:05]} Bb4+ {[%emt 0:00:19]} 12. Bd2 {[%emt 0:10:41]} Ne4 {[%emt 0:08:46]} 13. Bc3 {[%emt 0:00:40]} Nxc3 {[%emt 0:04:46]} 14. bxc3 {[%emt 0:00:06]} Bd6 {[%emt 0:00:04]} 15. Qd3 {[%emt 0:09:43]} Ne7 {[%emt 0:09:15]} 16. O-O {[%emt 0:02:27]} h6 {[%emt 0:01:54]} 17. Nd2 {[%emt 0:06:30]} O-O {[%emt 0:02:42]} 18. a4 {[%emt 0:09:51]} Bd7 {[%emt 0:03:27]} 19. Rfb1 {[%emt 0:06:01]} Qa6 {[%emt 0:01:47]} 20. Qxa6 {[%emt 0:07:07]} 1/2-1/2